bitfinex/quotes_ETHUSD_20260203
["timestamp","ask_amount","ask_price","bid_price","bid_amount"]
[1770124058123,0.01318942,2308.6,2307.7,1.08332972]
[1770124058505,12.71387542,2308.7,2307.7,1.08332972]
[1770124058704,12.700686,2308.7,2307.7,1.08332972]
[1770124059828,1.08290738,2308.6,2307.3,4.33388902]
[1770124060434,13.7967828,2308.6,2307.3,4.33388902]
[1770124060732,13.7967828,2308.6,2307.4,1.81315704]
[1770124061106,12.700686,2308.5,2307.3,4.33388902]
[1770124061306,1.08290738,2308.6,2307.4,12.71416381]
[1770124061623,1.08289476,2308.7,2307.4,12.71416381]
[1770124061818,4.33134591,2308.8,2307.5,1.08342361]
[1770124062022,4.34453533,2308.8,2307.5,1.08342361]
[1770124062222,4.33134591,2308.8,2307.6,1.81312819]
[1770124062803,12.700686,2308.9,2307.6,1.81312819]
[1770124063008,13.78348132,2308.9,2307.6,1.81312819]
[1770124063835,2.14,2307.7,2307.6,2.89650485]
[1770124064135,0.01318942,2308.7,2307.6,2.89650485]
[1770124064438,12.71387542,2308.7,2307.6,2.89650485]
[1770124064736,12.700686,2308.7,2307.6,2.89650485]
[1770124065134,12.71387542,2308.7,2307.6,2.89650485]
[1770124065518,1.08281358,2308.8,2307.6,15.61066866]
[1770124065751,1.56433569,2309.3,2307.6,15.61066866]
[1770124065752,11.35162998,2309.5,2307.6,15.62385808]
[1770124066045,1.56433569,2309.6,2308.0,12.71416381]
[1770124066046,4.32979927,2309.6,2308.0,12.71416381]
[1770124066416,17.03048527,2309.6,2308.0,12.71416381]
[1770124067917,17.03048527,2309.6,2308.1,1.08314197]
[1770124068644,0.0011,2309.8,2308.1,13.8104952]
[1770124068851,0.0011,2309.8,2308.2,12.72735323]
[1770124069144,0.0011,2309.8,2308.3,2.74836846]
[1770124069145,12.71387542,2309.7,2308.3,2.74836846]
[1770124069347,12.71387542,2309.5,2308.3,1.84036846]
[1770124069538,12.71387542,2309.5,2308.1,13.79730578]
[1770124069726,12.700686,2309.5,2308.1,13.79730578]
[1770124070054,13.79643918,2309.4,2308.1,1.08314197]
[1770124070255,13.78324976,2309.4,2308.1,1.08314197]
[1770124071143,13.78434976,2309.4,2308.1,1.08314197]
[1770124071364,13.78434976,2309.4,2308.2,1.76939204]
[1770124071859,12.701786,2309.4,2308.3,1.08304813]
[1770124072965,13.78431852,2309.4,2308.3,1.08304813]
[1770124073638,12.48842427,2309.3,2308.3,1.08304813]
[1770124073843,1.08262601,2309.2,2308.5,1.08295429]
[1770124074456,13.57105028,2309.2,2308.3,1.08301424]
[1770124074636,13.55786086,2309.2,2308.4,1.0829921]
[1770124074840,12.48842427,2309.1,2308.2,1.08305973]
[1770124075065,12.47523485,2309.0,2308.4,1.08298953]
[1770124075248,1.08262601,2309.2,2308.4,1.08298953]
[1770124075640,13.55786086,2309.2,2308.3,1.08301224]
[1770124075841,12.47523485,2309.0,2308.2,1.08306035]
[1770124076041,1.08276668,2308.9,2308.2,1.62461786]
[1770124077439,13.55800153,2308.9,2308.1,1.08310452]
[1770124077643,12.47523485,2308.7,2307.8,1.08324677]
[1770124077854,12.47523485,2308.7,2307.8,1.08324982]
[1770124078163,12.47523485,2308.7,2307.7,1.08330285]
[1770124078164,13.55814223,2308.6,2307.7,1.08330285]
[1770124079569,12.47523485,2308.6,2307.7,1.08330285]
[1770124079763,12.47523485,2308.6,2307.8,0.63247096]
[1770124080354,12.47523485,2309.3,2307.9,1.08323584]
[1770124080591,13.5578422,2309.3,2307.9,13.25224373]
[1770124081754,12.48842427,2309.1,2307.9,1.08323584]
[1770124082074,12.47523485,2308.9,2307.9,1.08323584]
[1770124082249,1.08271979,2309.0,2308.1,1.08314197]
[1770124082843,13.55795464,2309.0,2308.1,1.08314197]
[1770124083142,13.57114406,2309.0,2308.1,1.08314197]
[1770124083343,12.47523485,2308.8,2308.0,1.68805352]
[1770124083752,12.47523485,2308.8,2308.0,1.0831885]
[1770124083948,12.47523485,2308.8,2308.3,0.001]
[1770124084466,1.08286048,2308.7,2308.3,0.001]
[1770124084974,13.55806737,2308.8,2308.3,0.001]
[1770124085146,14.70954922,2309.1,2308.3,0.001]
[1770124085352,13.55791924,2309.1,2308.3,0.001]
[1770124086779,12.48842427,2309.0,2308.3,0.001]
[1770124087364,12.47523485,2309.0,2308.3,0.001]
[1770124088587,13.57119095,2308.9,2308.3,0.001]
[1770124090574,1.08286048,2308.7,2308.0,0.001]
[1770124091106,1.08286048,2308.7,2308.0,0.50409574]
[1770124091308,13.55808408,2308.8,2308.0,0.50409574]
[1770124091787,13.5712735,2308.8,2308.0,0.001]
[1770124091992,13.55808408,2308.8,2308.0,0.001]
[1770124092368,13.5712735,2308.8,2308.0,0.001]
[1770124094764,12.48842427,2308.6,2307.6,4.33340736]
[1770124095096,12.48842427,2308.6,2307.8,1.08327331]
[1770124095297,1.08295429,2308.5,2307.7,1.08329683]
[1770124096001,12.47523485,2308.2,2307.1,12.16900789]
[1770124096169,12.47523485,2308.2,2307.5,1.08338504]
[1770124096170,1.15162998,2308.2,2307.5,1.08338504]
[1770124096498,2.05962998,2308.3,2307.3,13.25249132]
[1770124096694,2.05962998,2308.4,2307.5,1.0834047]
[1770124096894,13.39642427,2308.4,2307.5,1.0834047]
[1770124097208,13.39642427,2308.4,2307.4,1.08343976]
[1770124097520,13.39642427,2308.4,2307.3,1.08351753]
[1770124097521,1.08304813,2308.3,2307.3,1.08351753]
[1770124097681,1.08304813,2308.3,2308.2,0.001]
[1770124097998,1.08304813,2308.3,2307.3,1.08351753]
[1770124098295,1.09623755,2308.3,2308.0,0.001]
[1770124098473,13.5714724,2308.3,2307.3,1.08351753]
[1770124099074,1.09623755,2308.3,2307.3,13.25252542]
[1770124099275,5.49701192,2308.4,2307.3,15.13288355]
[1770124099276,1.08303269,2308.4,2307.3,15.13288355]
[1770124099512,4.33190545,2308.5,2307.3,15.13288355]
[1770124099879,13.62686483,2308.7,2307.3,15.13288355]
[1770124100079,1.08290738,2308.6,2307.3,15.13288355]
[1770124100421,0.01318942,2308.5,2307.3,15.13288355]
[1770124100632,11.76309902,2308.5,2307.4,2.06839394]
[1770124101120,1.15162998,2308.6,2307.4,13.87112438]
[1770124101348,1.08289283,2308.7,2307.4,13.87112438]
[1770124101495,1.08289283,2308.7,2307.6,11.80273044]
[1770124102236,0.01318942,2308.5,2307.5,1.08342361]
[1770124102397,11.76309902,2308.5,2307.5,3.63365312]
[1770124102793,11.7499096,2308.5,2307.5,3.63365312]
[1770124103298,11.7499096,2308.6,2307.5,15.43638356]
[1770124103730,11.7499096,2308.6,2307.6,11.80273044]
[1770124103731,1.08293685,2308.6,2307.6,11.80273044]
[1770124104518,0.0032,2308.0,2307.6,11.80273044]
[1770124104841,0.0032,2308.0,2307.7,1.54363836]
[1770124105913,0.0032,2308.0,2307.7,2.62693334]
[1770124106113,0.0032,2308.0,2307.7,1.08329498]
[1770124108234,1.0829893,2308.5,2307.4,11.80273044]
[1770124108732,1.15162998,2308.7,2307.4,11.80273044]
[1770124108939,1.56543569,2308.9,2307.4,11.80273044]
[1770124108940,1.08389661,2308.9,2307.4,11.80273044]
[1770124109131,0.0011,2308.9,2307.4,11.80273044]
[1770124109322,1.08386736,2308.9,2307.6,11.80273044]
[1770124110362,1.08386736,2308.9,2307.8,11.80273044]
[1770124111146,11.76309902,2308.7,2307.7,1.08332972]
[1770124111326,1.09705678,2308.9,2307.7,12.88606016]
[1770124111647,1.08386736,2308.9,2307.7,12.88606016]
[1770124111820,1.08386736,2308.9,2307.9,11.80273044]
[1770124112023,11.76309902,2308.8,2307.8,1.7219379]
[1770124112224,12.83277008,2308.7,2307.6,4.33331888]
[1770124112652,12.8459595,2308.7,2307.6,4.33331888]
[1770124112818,4.34445084,2308.8,2307.7,11.80273044]
[1770124112819,1.08284419,2308.8,2307.7,11.80273044]
[1770124113221,0.0011,2308.6,2307.7,11.80273044]
[1770124113521,11.7510096,2308.6,2307.8,1.61370493]
[1770124113745,11.7510096,2308.6,2307.6,4.33431888]
[1770124113945,11.76309902,2308.4,2307.6,1.08437666]
[1770124114324,12.84612693,2308.4,2307.6,1.08437666]
[1770124114525,12.83293751,2308.4,2307.6,1.08437666]
[1770124117153,11.7499096,2308.3,2307.0,0.001]
[1770124117343,11.76309902,2308.3,2307.5,1.08341592]
[1770124117666,1.09621733,2308.4,2307.2,1.0835441]
[1770124117667,1.15162998,2307.9,2307.2,1.0835441]
[1770124117829,12.90153958,2308.0,2307.0,1.08463431]
[1770124118031,13.19649713,2307.9,2307.0,1.08463431]
[1770124118358,13.19649713,2307.9,2307.2,1.08356385]
[1770124118558,13.19649713,2307.9,2307.1,1.08357869]
[1770124118755,1.08328278,2307.8,2307.0,0.001]
[1770124121147,12.83319238,2307.8,2307.0,0.001]
[1770124121373,0.46972134,2307.7,2307.0,0.001]
[1770124122965,1.55306149,2307.7,2307.0,0.001]
[1770124123753,1.08321142,2308.0,2307.0,11.80373044]
[1770124125160,12.83312102,2308.0,2307.1,1.08361146]
[1770124125864,2.23476325,2308.2,2307.1,12.8863419]
[1770124126172,1.56433569,2308.4,2307.1,12.8863419]
[1770124126173,1.08301829,2308.4,2307.1,12.8863419]
[1770124126374,1.08299246,2308.5,2307.2,11.80373044]
[1770124126567,0.0011,2308.2,2307.4,11.80273044]
[1770124127071,0.0011,2308.2,2307.5,1.08342361]
[1770124129150,0.0011,2308.2,2307.2,1.08455793]
[1770124129151,11.7499096,2308.0,2307.2,1.08455793]
[1770124129384,11.7499096,2308.0,2307.2,0.001]
[1770124129565,11.7499096,2308.0,2307.2,1.08456416]
[1770124129770,1.1763099,2307.9,2307.2,1.08456416]
[1770124130562,1.15272998,2308.2,2307.3,1.08348304]
[1770124130782,0.0011,2308.2,2307.3,1.08348304]
[1770124131374,0.0011,2308.2,2307.2,4.33507012]
[1770124131574,11.81307785,2308.2,2307.2,4.33507012]
[1770124131881,1.4047756,2308.1,2307.2,6.56696387]
[1770124132880,12.50033335,2307.9,2307.2,0.001]
[1770124133181,13.58366307,2307.7,2307.0,0.001]
[1770124133478,12.51352277,2307.5,2306.8,0.0018]
[1770124134764,12.50033335,2307.3,2306.8,0.0018]
[1770124134960,13.01186662,2307.2,2306.5,0.001]
[1770124135367,1.08361146,2307.1,2306.5,0.001]
[1770124136882,12.50033335,2307.0,2306.4,0.001]
[1770124137065,12.50033335,2307.0,2306.1,0.0008]
[1770124137262,1.0837054,2306.9,2306.1,0.0008]
[1770124137472,12.50033335,2306.8,2306.1,0.0008]
[1770124137672,1.09689482,2306.9,2305.9,0.001]
[1770124137673,12.50033335,2306.6,2305.9,0.001]
[1770124137874,13.40833335,2306.6,2305.9,0.001]
[1770124138061,13.40833335,2306.6,2305.6,0.001]
[1770124139482,13.58422669,2306.5,2305.6,0.001]
[1770124140075,13.58422669,2306.5,2305.8,0.001]
[1770124140375,12.50033335,2306.9,2305.8,0.001]
[1770124140574,13.58406795,2306.9,2305.8,0.001]
[1770124141486,12.50033335,2306.7,2305.8,0.001]
[1770124141789,12.51352277,2306.4,2305.8,0.001]
[1770124142663,0.01318942,2306.3,2305.8,0.001]
[1770124143193,0.01318942,2306.3,2305.3,0.0008]
[1770124143194,12.50033335,2305.9,2305.3,0.0008]
[1770124143495,1.08431644,2305.6,2304.6,4.34084041]
[1770124143788,12.51352277,2305.4,2304.6,0.0018]
[1770124144468,0.01318942,2305.3,2304.6,0.0018]
[1770124144786,12.51352277,2305.3,2304.6,0.0018]
[1770124145285,1.57395659,2305.5,2304.6,0.0018]
[1770124145491,1.08441051,2305.4,2304.6,0.0018]
[1770124145674,0.69958544,2305.3,2304.6,0.0018]
[1770124145872,13.19991879,2305.3,2304.6,0.0018]
[1770124146187,0.69958544,2305.3,2304.6,0.0018]
[1770124146400,2.65832012,2305.5,2304.6,0.0018]
[1770124147701,0.66495659,2305.5,2304.7,12.38670826]
[1770124147889,1.08433222,2305.6,2304.7,12.38670826]
[1770124148699,1.08433222,2305.6,2304.7,0.001]
[1770124148879,0.01318942,2305.4,2304.7,0.001]
[1770124149681,1.08445755,2305.3,2304.7,0.001]
[1770124150293,1.09764697,2305.3,2304.7,0.001]
[1770124150511,0.54485661,2305.2,2304.7,0.001]
[1770124150691,0.01318942,2305.1,2304.2,1.06765179]
[1770124150897,1.45385661,2305.2,2304.2,1.06765179]
[1770124151103,1.37145226,2305.1,2304.3,12.38570826]
[1770124151420,0.909,2305.2,2304.3,12.38570826]
[1770124152082,1.08455164,2305.1,2304.9,0.001]
[1770124152485,1.08455164,2305.1,2304.4,1.08488109]
[1770124152799,1.08455164,2305.1,2304.2,6.55319342]
[1770124152800,1.09774106,2305.1,2304.6,0.001]
[1770124152982,1.99353632,2305.2,2304.6,0.001]
[1770124153183,0.6345696,2305.1,2304.6,0.001]
[1770124154400,1.08459869,2305.0,2304.6,0.001]
[1770124155399,0.6345696,2305.1,2304.6,0.001]
[1770124155592,1.99350543,2305.2,2304.6,0.001]
[1770124156895,1.99350543,2305.2,2304.6,0.001]
[1770124157294,0.909,2305.2,2304.6,0.001]
[1770124157497,0.0011,2305.3,2304.6,0.001]
[1770124163022,12.70342707,2305.3,2304.6,0.001]
[1770124163215,1.08450459,2305.2,2304.6,0.001]
[1770124164722,13.80002108,2305.2,2304.6,0.001]
[1770124165206,13.80002108,2305.2,2304.8,0.001]
[1770124165413,0.0011,2305.1,2304.8,0.001]
[1770124166205,0.0011,2305.1,2304.6,0.001]
[1770124168622,12.70342707,2305.1,2304.6,0.001]
[1770124168837,1.38011211,2305.0,2304.6,0.001]
[1770124169023,14.08243918,2305.0,2304.1,1.08500048]
[1770124169224,0.01318942,2304.8,2303.9,1.08508054]
[1770124169428,1.08478694,2304.6,2303.8,4.34058042]
[1770124170215,1.08478694,2304.6,2303.7,1.99516364]
[1770124170418,13.80030343,2304.6,2303.7,1.08616364]
[1770124171345,0.01318942,2304.5,2303.7,1.08616364]
[1770124171548,13.78720816,2304.4,2303.7,0.001]
[1770124171847,13.80039758,2304.4,2303.7,0.001]
[1770124177959,13.80039758,2304.4,2303.9,0.001]
[1770124178869,1.08488109,2304.4,2303.9,0.001]
[1770124179023,2.23635784,2304.8,2303.9,11.77738551]
[1770124179222,12.71551649,2304.7,2303.9,0.001]
[1770124179633,2.23635784,2304.8,2303.9,11.77738551]
[1770124179841,1.08472786,2304.8,2303.9,11.77738551]
[1770124180052,14.27985218,2305.0,2303.9,11.77738551]
[1770124180053,12.71551649,2305.0,2303.9,11.77738551]
[1770124180353,0.0011,2305.1,2303.9,11.77738551]
[1770124180524,0.0011,2305.1,2304.1,11.77638551]
[1770124180730,1.08568986,2305.1,2304.1,11.77638551]
[1770124180944,0.0011,2305.1,2304.2,1.08497526]
[1770124181141,0.0011,2305.1,2304.3,11.77638551]
[1770124183253,0.0011,2305.1,2304.5,11.77638551]
[1770124183462,0.0011,2305.1,2304.6,1.28612666]
[1770124185180,0.0011,2305.1,2304.7,1.08473987]
[1770124186682,1.1648194,2305.7,2304.8,11.77638551]
[1770124186862,1.08568234,2306.1,2304.8,11.77638551]
[1770124187061,1.08568234,2306.1,2305.0,11.77638551]
[1770124187364,0.0016,2306.1,2305.2,11.77638551]
[1770124187880,0.01318942,2306.0,2305.1,1.08455164]
[1770124188054,0.01318942,2306.0,2304.9,13.06249805]
[1770124188055,12.71551649,2305.7,2304.9,2.37073699]
[1770124188264,0.01318942,2305.5,2304.6,13.06251217]
[1770124188462,0.01318942,2305.6,2304.9,1.08464219]
[1770124188657,0.01318942,2305.4,2304.7,1.08471299]
[1770124188894,12.71551649,2305.5,2304.7,1.08471299]
[1770124189061,12.71551649,2305.5,2304.7,1.0847142]
[1770124189263,1.27287059,2305.4,2304.8,1.08468741]
[1770124189467,2.35730029,2305.4,2304.4,12.8612666]
[1770124189885,1.27287059,2305.4,2304.4,12.8612666]
[1770124190084,1.0842985,2305.7,2304.4,12.8612666]
[1770124190393,1.9942156,2305.9,2304.4,12.8612666]
[1770124191075,12.11270933,2305.8,2304.4,12.8612666]
[1770124192093,12.09951991,2305.8,2304.4,12.8612666]
[1770124192288,1.99531123,2305.9,2304.6,12.33830089]
[1770124192492,1.08531123,2305.9,2304.6,12.33830089]
[1770124193587,0.0011,2305.9,2304.6,12.33830089]
[1770124194104,0.0011,2305.9,2304.8,11.91980108]
[1770124194684,12.20429923,2305.7,2304.7,1.08473987]
[1770124194884,13.4261581,2305.7,2304.8,0.54236994]
[1770124196203,1.08431644,2305.6,2304.8,0.54236994]
[1770124196414,13.28861567,2305.6,2304.8,1.08465588]
[1770124198191,12.20429923,2305.5,2304.6,1.08478694]
[1770124199686,12.19110981,2305.5,2304.6,1.08478694]
[1770124199888,12.88555981,2305.5,2304.7,0.54239347]
[1770124200397,13.28870974,2305.4,2304.6,1.08478398]
[1770124200591,0.01318942,2305.3,2304.4,1.08484908]
[1770124200806,12.20429923,2305.3,2304.6,1.08478025]
[1770124201006,13.4261581,2305.3,2304.6,1.08478025]
[1770124201310,13.41296868,2305.3,2304.6,1.08478025]
[1770124201884,1.22185887,2305.3,2304.7,1.0847355]
[1770124202084,1.08439663,2305.5,2304.7,1.0847355]
[1770124203300,1.08439663,2305.5,2304.6,4.33914435]
[1770124203815,1.08439663,2305.5,2304.6,0.001]
[1770124203816,12.19110981,2305.3,2304.6,0.001]
[1770124203991,12.20429923,2305.2,2304.6,0.001]
[1770124205295,1.08455164,2305.1,2304.6,0.001]
[1770124205794,12.19110981,2304.8,2304.0,1.08504084]
[1770124206119,12.19110981,2304.8,2304.0,1.08506904]
[1770124206120,12.20429923,2304.8,2304.0,1.08506904]
[1770124206296,12.19110981,2304.8,2304.1,1.08501763]
[1770124207303,1.08473987,2304.7,2303.9,4.34143377]
[1770124207525,1.08473987,2304.7,2303.9,6.07616891]
[1770124207911,1.08473987,2304.7,2303.9,2.82085168]
[1770124208733,1.08473987,2304.7,2303.9,1.08611654]
[1770124208902,13.27584968,2304.7,2303.9,1.08611654]
[1770124209227,13.2890391,2304.7,2303.9,1.08611654]
[1770124209416,13.2890391,2304.7,2303.9,0.001]
[1770124209828,13.27584968,2304.7,2303.9,0.001]
[1770124212217,13.2890391,2304.7,2303.9,0.001]
[1770124213617,0.01318942,2304.6,2303.9,0.001]
[1770124213811,13.2759909,2304.4,2303.9,0.001]
[1770124214143,13.28918032,2304.4,2303.7,0.001]
[1770124214336,12.19110981,2304.0,2303.5,0.001]
[1770124214522,13.42472915,2303.9,2303.3,0.0008]
[1770124215042,13.41153973,2303.9,2303.3,0.0008]
[1770124216028,1.08516364,2303.8,2303.3,0.0008]
[1770124217319,1.08516364,2303.8,2302.7,1.08668202]
[1770124217320,13.27627345,2303.8,2302.7,1.08668202]
[1770124217532,13.27627345,2303.8,2302.7,13.0064831]
[1770124217748,0.69587895,2303.7,2302.8,13.74581896]
[1770124218142,1.78111531,2303.7,2302.9,1.08558773]
[1770124218531,1.78111531,2303.7,2303.6,0.001]
[1770124218729,1.78111531,2303.7,2302.9,1.08558773]
[1770124219027,13.97222512,2303.7,2302.9,1.08558773]
[1770124219227,1.22042992,2303.6,2302.9,1.08558773]
[1770124220415,12.79016834,2303.5,2302.7,0.001]
[1770124220740,11.71805279,2303.3,2302.7,0.001]
[1770124221109,11.70486337,2303.3,2302.7,0.001]
[1770124221316,1.08530497,2303.5,2302.8,1.08563043]
[1770124221519,0.69587895,2303.4,2302.8,1.08563043]
[1770124221831,0.91,2303.6,2302.8,13.29292134]
[1770124222249,12.61486337,2303.6,2302.7,1.08665248]
[1770124222546,1.0853992,2303.3,2302.7,0.001]
[1770124222750,12.79026257,2303.3,2302.7,0.001]
[1770124222924,1.08531774,2303.5,2302.7,0.001]
[1770124223120,1.08531774,2303.5,2302.7,12.20829091]
[1770124223533,1.99528936,2303.6,2302.7,12.20829091]
[1770124224446,13.71334215,2303.6,2302.8,1.08563487]
[1770124224647,13.71334215,2303.6,2302.7,1.08664556]
[1770124225145,0.01318942,2303.5,2302.7,1.08664556]
[1770124226838,0.01318942,2303.6,2302.7,12.20829091]
[1770124227028,1.9952391,2303.7,2302.7,12.20829091]
[1770124227348,2.00842852,2303.7,2302.7,12.20829091]
[1770124227549,0.01318942,2303.6,2302.7,12.20829091]
[1770124228352,11.71805279,2303.6,2302.7,0.001]
[1770124228546,1.38583755,2303.5,2302.7,0.001]
[1770124229061,0.01318942,2303.2,2302.7,0.001]
[1770124229455,0.01318942,2303.1,2302.7,0.001]
[1770124230027,11.71805279,2303.3,2302.7,0.001]
[1770124230337,1.08535208,2303.4,2302.7,0.001]
[1770124230532,0.01318942,2303.2,2302.7,0.001]
[1770124230749,0.01318942,2303.1,2302.9,0.001]
[1770124231064,0.01318942,2303.1,2302.7,0.001]
[1770124231429,0.01318942,2303.2,2302.7,0.001]
[1770124231631,1.08544728,2303.2,2302.7,0.001]
[1770124231865,0.59839118,2303.1,2302.7,0.001]
[1770124232162,0.6115806,2303.1,2302.6,0.0018]
[1770124232349,0.01318942,2303.0,2302.6,0.0018]
[1770124232672,0.01318942,2303.0,2302.5,0.001]
[1770124232833,0.01318942,2302.9,2302.5,0.001]
[1770124233340,1.08563487,2302.8,2302.5,0.001]
[1770124233668,1.63106705,2302.8,2302.5,0.001]
[1770124234030,0.54543218,2302.8,2302.5,0.001]
[1770124234537,1.09877993,2302.9,2302.5,0.001]
[1770124235249,0.01318942,2302.9,2302.5,0.001]
[1770124235452,1.68390152,2303.1,2302.5,0.001]
[1770124235757,1.69709094,2303.1,2302.5,0.001]
[1770124235968,1.31791769,2303.0,2302.5,0.001]
[1770124236345,0.01318942,2303.1,2302.5,0.001]
[1770124236531,0.01318942,2302.9,2302.5,0.001]
[1770124236739,0.01318942,2303.0,2302.5,0.001]
[1770124237361,1.09878189,2302.9,2302.3,0.001]
[1770124237566,1.08559247,2302.9,2302.3,0.001]
[1770124238063,1.09876368,2303.0,2302.3,0.001]
[1770124238240,1.08550563,2303.1,2302.3,12.20829091]
[1770124238439,1.09869505,2303.1,2302.3,12.20829091]
[1770124239539,1.09869505,2303.1,2302.4,1.08582348]
[1770124239834,0.0011,2303.4,2302.4,13.29311439]
[1770124240038,0.0011,2303.4,2302.6,12.20729091]
[1770124242472,0.0011,2303.4,2302.7,1.08568202]
[1770124243369,0.0011,2303.4,2302.7,13.29297293]
[1770124244960,0.0011,2303.4,2302.7,13.29397293]
[1770124245159,0.0011,2303.4,2302.8,1.7636701]
[1770124245360,0.0011,2303.2,2302.8,1.7636701]
[1770124246369,0.0011,2303.2,2302.9,1.08558773]
[1770124248544,0.0011,2303.2,2302.8,2.8492688]
[1770124253155,0.0011,2303.2,2302.8,1.0855987]
[1770124253576,0.0011,2303.2,2302.8,12.96157625]
[1770124254945,0.0011,2303.6,2302.9,11.87597755]
[1770124255152,0.0011,2303.6,2303.1,11.87597755]
[1770124255370,11.81285769,2303.6,2302.9,1.08556125]
[1770124255572,11.81285769,2303.6,2302.7,11.87697755]
[1770124255573,11.82494711,2303.2,2302.7,0.001]
[1770124255770,11.81175769,2303.2,2302.7,0.001]
[1770124256373,11.82494711,2303.1,2302.5,0.001]
[1770124256549,11.82494711,2303.1,2302.3,1.99686098]
[1770124256550,11.82494711,2302.9,2302.3,0.001]
[1770124256878,0.01318942,2302.8,2302.3,0.001]
[1770124257078,13.53578317,2302.8,2302.3,0.001]
[1770124257274,14.06874922,2303.1,2302.3,0.001]
[1770124257476,14.08193864,2303.1,2302.3,0.001]
[1770124257776,12.91047793,2303.1,2302.3,0.001]
[1770124258575,1.08553082,2303.1,2302.3,11.87697755]
[1770124258781,1.08553082,2303.1,2302.7,0.001]
[1770124258963,2.00867606,2303.1,2302.7,0.001]
[1770124259378,1.99548664,2303.1,2302.7,0.001]
[1770124260186,0.01318942,2303.0,2302.7,0.001]
[1770124260483,11.81175769,2302.7,2302.3,0.001]
[1770124260684,1.01954247,2302.6,2302.3,0.001]
[1770124260872,0.01318942,2302.6,2302.3,0.001]
[1770124261259,0.01318942,2302.6,2301.9,1.08682268]
[1770124261260,0.01318942,2302.5,2301.9,1.08682268]
[1770124261581,0.01318942,2302.5,2301.9,0.0008]
[1770124261582,0.01318942,2302.4,2301.9,0.0008]
[1770124261787,1.39789754,2302.4,2301.9,0.0008]
[1770124263091,1.39789754,2302.4,2301.9,1.08685907]
[1770124263260,2.00879892,2302.9,2301.9,12.96283662]
[1770124263461,0.01318942,2302.8,2301.9,12.96283662]
[1770124264666,0.01318942,2302.7,2301.9,12.96283662]
[1770124264868,1.08552905,2303.1,2301.9,12.96283662]
[1770124265085,0.75220824,2303.0,2302.1,11.87597755]
[1770124265262,1.17146071,2303.3,2302.3,11.87597755]
[1770124265590,1.09964985,2303.4,2302.3,11.87597755]
[1770124266389,0.01318942,2303.3,2302.3,11.87597755]
[1770124266581,0.01318942,2302.9,2302.2,1.08591781]
[1770124266776,0.01318942,2303.2,2302.3,12.41893646]
[1770124266976,0.01318942,2303.1,2302.3,12.41893646]
[1770124267374,1.09868986,2303.1,2302.4,1.08582348]
[1770124267710,0.01318942,2302.9,2302.4,1.08582348]
[1770124269070,0.01318942,2302.8,2302.0,6.07462536]
[1770124269269,0.01318942,2302.5,2301.9,0.0008]
[1770124269599,0.01318942,2302.4,2301.9,0.0008]
[1770124269763,1.08571038,2302.7,2301.9,0.0008]
[1770124269964,0.91,2302.7,2301.9,11.87677755]
[1770124270163,0.91,2302.7,2302.0,13.0636553]
[1770124271180,0.91,2302.7,2302.4,0.001]
[1770124271387,0.9111,2302.7,2302.4,0.001]
[1770124273396,0.0011,2302.7,2302.4,0.001]
[1770124274301,0.0011,2302.9,2302.4,11.87697755]
[1770124274488,1.08645828,2303.4,2302.5,13.17226237]
[1770124274801,1.0996477,2303.4,2302.5,13.17226237]
[1770124276870,1.0996477,2303.4,2302.6,1.08572917]
[1770124277093,0.01318942,2303.1,2302.5,1.08574475]
[1770124277267,0.01318942,2303.0,2302.5,1.08574475]
[1770124277470,0.01318942,2303.3,2302.5,1.62873986]
[1770124277882,0.01318942,2303.2,2302.5,1.62873986]
[1770124278483,14.0828661,2303.4,2302.5,1.62873986]
[1770124278684,0.01318942,2303.3,2302.5,1.62873986]
[1770124278899,0.0011,2303.4,2302.5,13.50471741]
[1770124279197,0.0011,2303.4,2302.6,13.66086993]
[1770124280989,0.0011,2303.4,2302.7,1.08568202]
[1770124282182,0.0011,2303.4,2302.7,13.1334912]
[1770124283292,6.04474392,2303.3,2302.7,1.08568202]
[1770124283505,0.01318942,2302.8,2302.6,2.87060314]
[1770124283704,6.04474392,2303.0,2302.7,1.08567081]
[1770124284003,6.04474392,2303.0,2302.5,1.08573847]
[1770124284407,6.04474392,2303.0,2302.7,1.085682]
[1770124284790,6.04474392,2303.0,2302.6,1.08570274]
[1770124285320,6.04474392,2303.0,2302.4,0.001]
[1770124285511,6.04474392,2303.0,2302.9,0.001]
[1770124285706,6.04474392,2303.0,2302.4,1.74881399]
[1770124286009,6.04474392,2303.0,2302.6,0.001]
[1770124286401,1.08655799,2303.2,2302.6,0.001]
[1770124286580,0.0011,2303.2,2302.6,0.001]
[1770124286911,1.78512949,2303.2,2302.6,0.001]
[1770124287910,2.87058662,2303.2,2302.6,0.001]
[1770124288210,15.26860244,2303.2,2302.6,0.001]
[1770124288601,15.25541302,2303.2,2302.6,0.001]
[1770124288809,14.16995589,2303.2,2302.6,0.001]
[1770124289110,0.85360963,2303.1,2302.6,0.001]
[1770124289985,0.0011,2303.2,2302.6,0.001]
[1770124290628,0.0011,2303.2,2302.6,12.04880918]
[1770124290921,0.0011,2303.4,2302.7,12.04780918]
[1770124292082,0.0011,2303.4,2302.8,1.08563487]
[1770124292283,12.3859264,2303.4,2302.7,1.08565423]
[1770124292486,1.23991158,2303.3,2302.7,1.08565423]
[1770124292830,12.3859264,2303.4,2302.6,0.001]
[1770124293015,0.0011,2303.4,2302.7,1.08567983]
[1770124293187,0.01428942,2303.4,2302.7,1.08567983]
[1770124293388,0.0011,2303.4,2302.7,1.08567983]
[1770124293786,0.0011,2303.4,2302.7,13.13348901]
[1770124293992,0.0011,2303.4,2302.9,1.08558773]
[1770124294517,0.0011,2303.9,2303.0,12.04780918]
[1770124295501,0.01318942,2303.8,2302.9,1.08558773]
[1770124296017,0.01318942,2303.8,2302.9,13.13339691]
[1770124297514,0.01318942,2303.7,2302.9,1.08558773]
[1770124297715,0.01318942,2303.7,2303.0,0.80856753]
[1770124297906,0.01318942,2303.7,2302.9,1.08558773]
[1770124298101,0.0011,2303.9,2302.9,13.13339691]
[1770124298330,0.01428942,2303.9,2302.9,13.13339691]
[1770124298633,0.01428942,2303.9,2302.9,13.13439691]
[1770124298806,0.0011,2303.6,2302.9,13.13439691]
[1770124299006,0.0011,2303.6,2303.0,2.01344845]
[1770124300438,0.0011,2303.6,2303.0,14.06125763]
[1770124300824,0.0011,2303.6,2303.1,1.08549346]
[1770124306638,0.0011,2303.6,2303.1,13.13330264]
[1770124306941,0.0011,2303.8,2303.1,13.13330264]
[1770124307144,0.0011,2303.8,2303.2,1.94887249]